{"text_format":"1","workbook":"xlsx","n_sheets":3,"sheets":["Calcul","Détail des calculs - STD","Détail des calculs - PERF"],"not_rendered":{"charts":0,"images":2,"macros":1,"external_links":0,"defined_names":50,"comments":0,"pivot_tables":0},"unopened":[],"bounds":{"document_bytes":16777216,"sheet_cells":100000,"rows_first":2000,"rows_last":500,"rows_between":2000,"halvings":0,"cell_chars":16384,"cell_head_chars":4096},"cells_cut":0,"cells_raw":0,"read":"whole","date_system":"1900"}

{"sheet":"Calcul","index":0,"n_rows":215,"n_cols":25,"rows_kept":215,"cut":false,"hidden":false,"merged":[[17,0,17,5],[52,0,52,5],[85,0,85,5],[0,0,0,5],[1,0,1,5],[2,0,2,5],[3,0,3,5],[32,0,32,1],[7,0,7,5],[13,0,13,1],[16,0,16,1],[45,1,45,2],[41,1,41,2],[43,1,43,2],[44,10,46,12],[211,0,211,5],[214,0,214,5],[209,13,209,14],[84,0,84,5],[137,0,137,5],[196,3,196,4],[202,0,202,5],[207,0,207,5],[77,0,77,5],[49,1,49,2]]}
[{"$f":"IF($H$6=1,U1,V1)","v":"Bienvenue dans le calculateur en ligne des bourses et prêts d’études du canton du Valais. "},null,null,null,null,null,null,null,null,null,null,null,null,null,null,null,null,null,null,null,"Bienvenue dans le calculateur en ligne des bourses et prêts d’études du canton du Valais. ","Herzlich willkommen beim Online-Rechner des Kantons Wallis! "]
[{"$f":"IF($H$6=1,U2,V2)","v":"Ce calculateur est mis à disposition par la section des bourses et prêts d’études."},null,null,null,null,null,null,null,null,null,null,null,null,null,null,null,null,null,null,null,"Ce calculateur est mis à disposition par la section des bourses et prêts d’études.","Dieses Tool zur Berechnung Ihres Stipendien- oder Darlehensanspruchs wird Ihnen von der Sektion Stipendien und Ausbildungsdarlehen zur Verfügung gestellt."]
[{"$f":"IF($H$6=1,U3,V3)","v":"Le calcul des bourses et/ou prêt s d’études vous est présenté à titre indicatif !\nIl n'engage en aucun cas l'Administration cantonale, ni la Commission des Bourses et des Prêts d'études, car les bourses et prêts d’études sont calculés par l'autorité compétente sur la base des documents à fournir par le requérant, notamment la taxation définitive des parents, les gains du requérant, le nombre d’enfants à charge et en formation, etc..."},null,null,null,null,null,null,null,null,null,null,null,null,null,null,null,null,null,null,null,"Le calcul des bourses et/ou prêt s d’études vous est présenté à titre indicatif !\nIl n'engage en aucun cas l'Administration cantonale, ni la Commission des Bourses et des Prêts d'études, car les bourses et prêts d’études sont calculés par l'autorité compétente sur la base des documents à fournir par le requérant, notamment la taxation définitive des parents, les gains du requérant, le nombre d’enfants à charge et en formation, etc...","Bitte beachten Sie, dass das errechnete Ergebnis unverbindlich ist und lediglich als Anhaltspunkt dient.\nDa sich die zuständige Behörde bei der Berechnung der Stipendien und Ausbildungsdarlehen auf die vom Antragsteller eingereichten Dokumente (wie Steuerverfügung der Eltern, Einkommen des Antragstellers, Anzahl unterhaltsberechtigter oder sich in Ausbildung befindlicher Kinder) stützt, hat das Ergebnis des Online-Rechners weder für die Kantonsverwaltung noch für die Kommission für Ausbildungsbeiträge eine Verpflichtung zur Folge."]
[{"$f":"IF($H$6=1,U4,V4)","v":"Le résultat du calcul correspond à une estimation basée sur les données que vous allez insérer. Des éléments de votre situation personnelle peuvent ne pas être pris en considération par le calculateur.\n\nPour compléter le calcul, vous avez besoin de la taxation fiscale de vos parents et du montant de vos gains durant l’année scolaire. Les données sont à indiquer pour une année de formation complète.\nCertaines situations plus complexes, comme celles qui concernent la répartition des enfants dans les ménages lorsque les parents sont séparés, notamment lors de garde partagée ainsi que la détermination de l’indépendance partielle ou non des prestations parentales ont été intégrées au calculateur. Toutefois, elles peuvent être sujette à une interprétation erronée de votre part et conduire à un résultat incorrect.\n\nPour d’autres conditions à remplir pour l’octroi d’une bourse (reconnaissance de la formation, reconnaissance de l’établissement de formation, compétence du canton, …), veuillez contacter la section des bourses et prêts d'études.\n"},null,null,null,null,null,null,null,null,null,null,null,null,null,null,null,null,null,null,null,"Le résultat du calcul correspond à une estimation basée sur les données que vous allez insérer. Des éléments de votre situation personnelle peuvent ne pas être pris en considération par le calculateur.\n\nPour compléter le calcul, vous avez besoin de la taxation fiscale de vos parents et du montant de vos gains durant l’année scolaire. Les données sont à indiquer pour une année de formation complète.\nCertaines situations plus complexes, comme celles qui concernent la répartition des enfants dans les ménages lorsque les parents sont séparés, notamment lors de garde partagée ainsi que la détermination de l’indépendance partielle ou non des prestations parentales ont été intégrées au calculateur. Toutefois, elles peuvent être sujette à une interprétation erronée de votre part et conduire à un résultat incorrect.\n\nPour d’autres conditions à remplir pour l’octroi d’une bourse (reconnaissance de la formation, reconnaissance de l’établissement de formation, compétence du canton, …), veuillez contacter la section des bourses et prêts d'études.\n","Das Resultat ist eine Schätzung, die sich auf die von Ihnen gemachten Angaben stützt. Ihre persönliche Situation kann vom Online-Rechner leider nicht berücksichtigt werden.\n\nUm die Berechnung durchzuführen, benötigen Sie die Steuerveranlagung Ihrer Eltern sowie das Einkommen, das Sie während des Schuljahrs allenfalls erarbeitet haben. Die Angaben sind jeweils für ein Ausbildungsjahr anzugeben.\nAuch kompliziertere Fälle, wie die Aufteilung von Kindern bei getrennt lebenden Eltern mit gemeinsamem Sorgerecht oder die Bestimmung einer teilweisen Unabhängigkeit von den elterlichen Leistungen, können vom Rechner bearbeitet werden. Eine unkorrekte Auslegung dieser Informationen Ihrerseits kann zu einem falschen Ergebnis führen.\n\nAuf Anfrage teilt Ihnen die Sektion Stipendien und Ausbildungsdarlehen gerne die weiteren Bedingungen für die Gewährung eines Stipendiums (Anerkennung der Ausbildung, Anerkennung der Bildungseinrichtung, Zuständigkeit des Kantons, ...) mit."]
[null,null,null,null,null,null,null,null,null,null,null,null,null,"Année calculateur",{"$f":"IF(MONTH(O10)>=6,YEAR(O10)&\"/\"& YEAR(O10)+1,YEAR(O10)-1&\"/\"&YEAR(O10))","v":"2023/2024"}]
[{"$f":"IF($H$6=1,U6,V6)","v":"Année de formation"},{"$f":"O5","v":"2023/2024"},null,null,null,"FR",null,{"$f":"VLOOKUP(F6,N5:N6:O7,2,FALSE)","v":1},null,null,null,null,null,"FR",1,null,null,null,null,null,"Année de formation","Schuljahr"]
[null,null,null,null,null,null,null,null,null,null,null,null,null,"DE",2]
[{"$f":"IF($H$6=1,U8,V8)","v":"Veuillez compléter toutes les cellules de couleurs grises et oranges ci-dessous !\n - Dans les cellules en gris, vous devez sélectionner une des valeurs présentes.\n - Dans les cellules oranges, vous devez saisir des nombres entiers."},{"$f":"IF($H$6=1,V8,V9)","v":"Vervollständigen Sie bitte alle nachfolgenden Felder in grau und orange.\n - Bei den grauen Feldern wählen Sie bitte eine Option aus.\n - In die orangen Felder geben Sie bitte eine ganze Zahl ein."},{"$f":"IF($H$6=1,V9,X8)","v":" - Dans les cellules vertes, vous devez saisir du texte.\n - In die grünen Felder geben Sie bitte einen Text ein."},0,0,0,null,null,null,null,null,null,null,null,null,null,null,null,null,null,"Veuillez compléter toutes les cellules de couleurs grises et oranges ci-dessous !\n - Dans les cellules en gris, vous devez sélectionner une des valeurs présentes.\n - Dans les cellules oranges, vous devez saisir des nombres entiers.","Vervollständigen Sie bitte alle nachfolgenden Felder in grau und orange.\n - Bei den grauen Feldern wählen Sie bitte eine Option aus.\n - In die orangen Felder geben Sie bitte eine ganze Zahl ein."]
[null,null,null,null,null,null,null,null,null,null,null,null,null,null,null,null,"FR","DE",null,null,null," - Dans les cellules vertes, vous devez saisir du texte.\n - In die grünen Felder geben Sie bitte einen Text ein."]
[null,null,null,null,null,null,null,null,null,null,null,null,null,"Aujourd'hui",{"$f":"TODAY()","v":"2023-07-03"}]
[{"$f":"IF($H$6=1,U11,V11)","v":"Formation et catégorie de frais"},null,null,null,null,null,null,null,null,null,null,null,null,"Année taxation",{"$f":"IF(MONTH(O10)>=6,YEAR(O10)-2,YEAR(O10)-3)","v":2021},null,null,null,null,null,"Formation et catégorie de frais","Ausbildung und Kostenkategorie"]
[]
[{"$f":"IF($H$6=1,U13,V13)","v":"Type de formation envisagée"},null,null,null,null,null,null,null,null,null,null,null,null,{"$f":"IF($H$6=1,Q13,R13)","v":"Fréquentation d'une classe du cycle d'orientation dans une autre région linguistique ou d'une structure sport-arts-formation"},1,null,"Fréquentation d'une classe du cycle d'orientation dans une autre région linguistique ou d'une structure sport-arts-formation","Besuch einer OS-Klasse in einer anderen Sprachregion oder einer Sport-Kunst-Ausbildungsstruktur ",null,null,"Type de formation envisagée","Art der geplanten Ausbildung"]
["Formation secondaire du deuxième degré (Collège, ECCG, Ecoles profesionnelles à plein temps, …)",null,null,null,null,null,null,{"$f":"VLOOKUP(A14,N13:O18,2,FALSE)","v":1},null,null,null,null,null,"Ecoles préparatoires (écoles préprofessionnelles, …)",1,null,"Ecoles préparatoires (écoles préprofessionnelles, …)","Vorbereitende Schule (Schule für Berufsvorbereitung, ...) "]
[null,null,null,null,null,null,null,null,null,null,null,null,null,"Apprentissage",1,null,"Apprentissage","Berufslehre "]
[{"$f":"IF($H$6=1,U16,V16)","v":"Type d'école"},null,null,null,null,null,null,null,null,null,null,null,null,"Formation secondaire du deuxième degré (Collège, ECCG, Ecoles profesionnelles à plein temps, …)",1,null,"Formation secondaire du deuxième degré (Collège, ECCG, Ecoles profesionnelles à plein temps, …)","Mittelschulausbildung (Kollegium, FMS, HMS, Berufliche Bildung (vollschulisch),...) ",null,null,"Type d'école","Art der Schule"]
["Publique",null,null,null,null,null,null,{"$f":"VLOOKUP(A17,N20:O21,2,FALSE)","v":1},null,null,null,null,null,"Formation tertiaire (Université, HES, ES, …)",2,null,"Formation tertiaire (Université, HES, ES, …)","Tertiäre Ausbildung"]
[{"$f":"IF($H$6=1,U18,V18)","v":"A compléter uniquement s'il s'agit d'un perfectionnement en emploi (Inclure tous les frais liés au cours) ou si la formation est suivie dans une école privée (uniquement les frais d'écolage)"},{"$f":"IF($H$6=1,V18,W28)","v":"Nur ausfüllen, wenn es sich um eine berufsbegleitende Weiterbildung handelt (alle mit dem Kurs verbundenen Kosten einschliessen) oder die Ausbildung von einer Privatschule angeboten wird (nur Schulgeld)."},{"$f":"IF($H$6=1,W28,X28)","v":0},{"$f":"IF($H$6=1,X28,Y28)","v":0},{"$f":"IF($H$6=1,Y28,Z28)","v":0},{"$f":"IF($H$6=1,Z28,AA28)","v":0},null,null,null,null,null,null,null,"Perfectionnement",4,null,"Perfectionnement","Weiterbildungen",null,null,"A compléter uniquement s'il s'agit d'un perfectionnement en emploi (Inclure tous les frais liés au cours) ou si la formation est suivie dans une école privée (uniquement les frais d'écolage)","Nur ausfüllen, wenn es sich um eine berufsbegleitende Weiterbildung handelt (alle mit dem Kurs verbundenen Kosten einschliessen) oder die Ausbildung von einer Privatschule angeboten wird (nur Schulgeld)."]
[{"$f":"IF($H$6=1,U19,V19)","v":"Ecolage"},0,null,null,null,null,null,{"$f":"IF(H17=2,IF(B19>6000,MROUND(MIN(B19-6000,5000),10),0),0)","v":0},null,null,null,null,null,null,null,null,null,null,null,null,"Ecolage","Schulkosten"]
[null,null,null,null,null,null,null,null,null,null,null,null,null,{"$f":"IF($H$6=1,Q20,R20)","v":"Publique"},1,null,"Publique","Öffentliche Schule"]
[{"$f":"IF($H$6=1,U21,V21)","v":"Frais liés à la formation"},null,null,null,null,null,null,null,null,null,null,null,null,{"$f":"IF($H$6=1,Q21,R21)","v":"Privée"},2,null,"Privée","Private Schule ",null,null,"Frais liés à la formation","Kosten in Verbindung mit der Ausbildung"]
[]
[{"$f":"IF($H$6=1,U23,V23)","v":"Frais de logement hors du domicile des parents"},"Non",null,null,null,null,null,{"$f":"VLOOKUP(B23,N23:O24,2,FALSE)","v":0},"0=non | 1=oui",null,null,null,null,{"$f":"IF($H$6=1,Q23,R23)","v":"Non"},0,null,"Non","Nein",null,null,"Frais de logement hors du domicile des parents","Kosten Unterkunft ausserhalb Wohnort der Eltern"]
[{"$f":"IF($H$6=1,U24,V24)","v":"Montant annuel du loyer"},0,null,null,null,null,null,{"$f":"MIN(B24,VLOOKUP(J46,$N$144:$Q$161,4,FALSE))","v":0},null,null,null,null,null,{"$f":"IF($H$6=1,Q24,R24)","v":"Oui"},1,null,"Oui","Ja",null,null,"Montant annuel du loyer","Jährlicher Mietzins"]
[]
[{"$f":"IF($H$6=1,U26,V26)","v":"Frais de formation"},{"$f":"IF(H17=1,IF(H14=1,2500,IF(H14=2,3000,0)),IF(H14=1,2500+H19,IF(H14=2,3000+H19,0)))","v":2500},null,null,null,null,null,null,null,null,null,null,null,null,null,null,null,null,null,null,"Frais de formation","Ausbildungskosten"]
[]
[{"$f":"IF($H$6=1,U28,V28)","v":"Frais de repas"},{"$f":"IF(H14<>4,IF(H23=1,3600,2200),0)","v":2200},null,null,null,null,null,null,null,null,null,null,null,null,null,null,null,null,null,null,"Frais de repas","Verpflegungskosten"]
[]
[{"$f":"IF($H$6=1,U30,V30)","v":"Frais de déplacement"},0,null,null,null,null,null,null,null,null,null,null,null,null,null,null,null,null,null,null,"Frais de déplacement","Reisespesen"]
[]
[{"$f":"IF($H$6=1,U32,V32)","v":"Nombre de semestres durant l'année de formation"},null,null,null,null,null,null,null,null,null,null,null,null,1,1,null,null,null,null,null,"Nombre de semestres durant l'année de formation","Anzahl Semester während dem Ausbildungsjahr"]
[2,null,null,null,null,null,null,{"$f":"VLOOKUP(A33,N32:O33,2,FALSE)","v":2},null,null,null,null,null,2,2]
[]
[]
[]
[{"$f":"IF($H$6=1,U37,V37)","v":"Frais liés à la formation"},{"$f":"IF(H14<>4,IF(H23=1,SUM(H24,B26,B28,B30),SUM(B26,B28,B30)),B19+B30)","v":4700},null,null,null,null,null,null,null,null,null,null,null,null,null,null,null,null,null,null,"Frais liés à la formation","Kosten in Verbindung mit der Ausbildung"]
[]
[]
[{"$f":"IF($H$6=1,U40,V40)","v":"Situation de la personne en formation"},null,null,null,null,null,null,null,null,null,null,null,null,null,null,null,null,null,null,null,"Situation de la personne en formation","Situation der Person in Ausbildung"]
[]
[{"$f":"IF($H$6=1,U42,V42)","v":"Nom"},null,null,null,null,null,null,"Référence",null,null,null,null,null,{"$f":"IF($H$6=1,Q42,R42)","v":"Célibataire"},1,null,"Célibataire","Ledig",null,null,"Nom","Name"]
[null,null,null,null,null,null,null,null,null,null,null,null,null,"Marié(e) ",2,null,"Marié(e) ","Verheiratet"]
[{"$f":"IF($H$6=1,U44,V44)","v":"Prénom"},null,null,null,null,null,null,null,null,null,null,null,null,"Divorcé(e) ",1,null,"Divorcé(e) ","Geschieden ",null,null,"Prénom","Vorname"]
[null,null,null,null,null,null,null,null,null,null,"Pas tenir compte des enfants dans prix du logement si pas \"Entretien hors famille\"",null,null,"Séparé(e) ",1,null,"Séparé(e) ","Getrennt"]
[{"$f":"IF($H$6=1,U46,V46)","v":"Statut"},"Célibataire",null,null,null,null,null,{"$f":"VLOOKUP(B46,N42:O52,2,FALSE)","v":1},"Nbre",{"$f":"H46+C48-C48","v":1},null,null,null,"Veuf(ve)",1,null,"Veuf(ve)","Verwitwet",null,null,"Statut","Status"]
[null,null,null,null,null,null,null,null,null,null,null,null,null,"Remarié(e) ",2,null,"Remarié(e) ","Wiederverheiratet"]
[{"$f":"IF($H$6=1,U48,V48)","v":"Nombre d'enfants à charge"},null,0,null,null,null,null,null,null,"(+ 4'000 /enfant)",null,null,null,{"$f":"IF($H$6=1,Q48,R48)","v":"Partenariat enregistré"},2,null,"Partenariat enregistré","Eingetragene Partnerschaft",null,null,"Nombre d'enfants à charge","Kinder des Antragstellers "]
[null,null,null,null,null,null,null,null,null,null,null,null,null,{"$f":"IF($H$6=1,Q49,R49)","v":"Orphelin de père et de mère (Célibataire)"},3,null,"Orphelin de père et de mère (Célibataire)"," Vollwaise (Ledig)"]
[{"$f":"IF($H$6=1,U50,V50)","v":"Domicile légal chez"},"Parents",null,null,null,null,null,null,null,null,null,null,null,{"$f":"IF($H$6=1,Q50,R50)","v":"Parents"},1,null,"Parents","Eltern",null,null,"Domicile légal chez","Wohnsitz bei"]
[null,null,null,null,null,null,null,null,null,null,null,null,null,"Mère",2,null,"Mère","Mutter"]
[{"$f":"IF($H$6=1,U52,V52)","v":"Indépendance partielle des parents (IP)"},null,"Non",null,null,null,null,{"$f":"VLOOKUP(C52,N23:O24,2,FALSE)","v":0},"0=non | 1=oui",null,null,null,null,"Père",3,null,"Père","Vater",null,null,"Indépendance partielle des parents (IP)","Partielle Unabhängigkeit von den Eltern"]
[{"$f":"IF($H$6=1,U53,V53)","v":"Vous devez remplir les 3 critères suivants avant le début de votre formation  pour être considéré comme indépendant des parents :\n- Âge > 25 ans révolus\n- 1ère formation donnant accès à un métier terminée\n- Indépendance financière pendant au moins 2 ans (revenu annuel > 30'000.-)\n\n !! Seule l’administration compétente pourra déterminer si l’indépendance partielle est effective ou non"},{"$f":"IF($H$6=1,V53,W46)","v":"Vervollständigen Sie bitte die nachfolgenden Kriterien gemäss den vor Beginn Ihrer Ausbildung geltenden Angaben:\n- Alter > abgeschlossenes 25. Altersjahr\n- Erstausbildung, die Zugang zum Arbeitsmarkt bietet\n-  Finanzielle Unabhängigkeit während mindestens 2 Jahren\n\n !! Die zuständige Behörde legt fest, ob eine partielle Unabhängigkeit vorliegt oder nicht"},{"$f":"IF($H$6=1,W46,X46)","v":0},{"$f":"IF($H$6=1,X46,Y46)","v":0},{"$f":"IF($H$6=1,Y46,Z46)","v":0},{"$f":"IF($H$6=1,Z46,AA46)","v":0},null,null,null,null,null,null,null,"Propre domicile légal",4,null,"Propre domicile légal","Eigene Wohnsitz",null,null,"Vous devez remplir les 3 critères suivants avant le début de votre formation  pour être considéré comme indépendant des parents :\n- Âge > 25 ans révolus\n- 1ère formation donnant accès à un métier terminée\n- Indépendance financière pendant au moins 2 ans (revenu annuel > 30'000.-)\n\n !! Seule l’administration compétente pourra déterminer si l’indépendance partielle est effective ou non","Vervollständigen Sie bitte die nachfolgenden Kriterien gemäss den vor Beginn Ihrer Ausbildung geltenden Angaben:\n- Alter > abgeschlossenes 25. Altersjahr\n- Erstausbildung, die Zugang zum Arbeitsmarkt bietet\n-  Finanzielle Unabhängigkeit während mindestens 2 Jahren\n\n !! Die zuständige Behörde legt fest, ob eine partielle Unabhängigkeit vorliegt oder nicht"]
[]
[null,null,null,null,null,null,null,null,null,null,null,null,null,null,null,null,null,null,null,null,null,"In dieses Feld dürfen nur Ziffern eingetragen werden."]
[{"$f":"IF($H$6=1,U56,V56)","v":"Calcul ressources personnelles"},null,null,null,null,null,null,null,null,null,null,null,null,null,null,null,null,null,null,null,"Calcul ressources personnelles","Berechnung der persönlichen Ressourcen"]
[null,null,null,null,null,null,null,null,null,null,null,null,null,null,null,null,null,null,null,null,"Personne en formation","Person in Ausbildung"]
[{"$f":"IF($H$6=1,U58,V58) & \"(\" & O58 & \")\"","v":"Revenus durant l'année de formation (01.07.2023 - 30.06.2024)"},null,{"$f":"IF($H$6=1,U57,V57)","v":"Personne en formation"},0,null,null,null,null,null,null,null,null,null,"Revenus durant l'année de formation",{"$f":"IF(MONTH(O10)>=6,\"01.07.\"& YEAR(O10) &\" - \" & \"30.06.\" & YEAR(O10)+1,\"01.07.\"& YEAR(O10)-1 &\" au \" & \"30.06.\" & YEAR(O10))","v":"01.07.2023 - 30.06.2024"},null,null,null,null,null,"Revenus durant l'année de formation ","Einkommen während des Schuljahres "]
[{"$f":"IF($H$6=1,U59,V59)","v":"Revenu brut"},null,0,0,null,null,null,null,null,null,null,null,null,null,null,null,null,null,null,null,"Revenu brut","Bruttoeinkommen"]
[{"$f":"IF($H$6=1,U60,V60)","v":"Pensions alimentaires reçues"},null,0,0,null,null,null,null,null,null,null,null,null,null,null,null,null,null,null,null,"Pensions alimentaires reçues","Unterhaltsbeiträge"]
[{"$f":"IF($H$6=1,U61,V61)","v":"Rentes (Orphelin, AI/AVS, …)"},null,0,0,null,null,null,null,null,null,null,null,null,"Variable","Formules",null,null,null,null,null,"Rentes (Orphelin, AI/AVS, …)","Renten (AHV-, IV-, Waisenrenten)"]
[{"$f":"IF($H$6=1,U62,V62)","v":"Autres revenus"},null,0,0,null,null,null,null,null,null,null,null,null,"Revenu du requérant (RR)","Saisie manuelle de tous les revenus",null,null,null,null,null,"Autres revenus","Andere Einkünfte"]
[null,null,null,null,null,null,null,null,null,null,null,null,null,"Revenu du conjoint (RC)","Saisie manuelle de tous les revenus",null,null,null,null,null,"Conjoint","Ehepartners "]
[{"$f":"IF($H$6=1,U64,V64)","v":"Total des revenus"},null,{"$f":"SUM(C59:C62) + IF(H46=2,SUM(D59:D62),0)","v":0},null,null,null,null,null,null,null,null,null,null,"Total des revenus brut (RT)","RR+RC",null,null,null,null,null,"Total des revenus","Total Einkommen"]
[null,null,null,null,null,null,null,null,null,null,null,null,null,"Franchise sur revenu (FR)"," 30%*RT mais min : 6'000.-"]
[{"$f":"IF($H$6=1,U66,V66)","v":"Franchise"},null,{"$f":"IF(H14=4,0,MAX(6000,30%*C64))","v":6000},null,null,null,null,null,null,null,null,null,null,null,null,null,null,null,null,null,"Franchise","Franchise"]
[null,null,null,null,null,null,null,null,null,null,null,null,null,"Fortune nette (FN)","Saisie manuelle"]
[{"$f":"IF($H$6=1,U68,V68)","v":"Revenus calculés"},null,{"$f":"IF(H14=4,0,C64-C66)","v":-6000},null,null,null,null,null,null,null,null,null,null,"Revenu Fortune (RF)","5% FN",null,null,null,null,null,"Revenus calculés","Bruttoeinkommen nach Abzug der Franchise"]
[{"$f":"IF($H$6=1,U69,V69)","v":"Revenus personnels"},null,{"$f":"IF(H14=4,C64,IF(C68>0,MROUND(C68,10),0))","v":0},null,null,null,null,null,null,null,null,null,null,null,null,null,null,null,null,null,"Revenus personnels","Persönliches Einkommen"]
[null,null,null,null,null,null,null,null,null,null,null,null,null,"Ressources personnelles","RB-FR+RF"]
[{"$f":"IF($H$6=1,U71 & \"Taxation \"& O11+1 &\")\",V71 & \"Steuerveranlagung \" & O11+1 &\")\")","v":"Fortune nette de la personne en formation (Rubrique 4100 -Taxation 2022)"},null,0,null,null,null,null,null,null,null,null,null,null,null,null,null,null,null,null,null,"Fortune nette de la personne en formation (Rubrique 4100 -","Nettovermögen (Rubrik 4100 - "]
[{"$f":"IF($H$6=1,U72,V72)","v":"Revenu Fortune "},0.05,{"$f":"IF(H14<>4,C71*B72,0)","v":0},null,null,null,null,null,null,null,null,null,null,null,null,null,null,null,null,null,"Revenu Fortune ","Vermögenseinkommen"]
[]
[]
[{"$f":"IF($H$6=1,U75,V75)","v":"Situation familiale des parents"},null,null,null,null,null,null,null,null,null,null,null,null,null,null,null,null,null,null,null,"Situation familiale des parents","Familiäre Situation der Eltern"]
[null,null,null,null,null,null,null,null,null,null,null,null,null,"(1=Parents mariés; 2=Mère; 3=Père; 4=Père + Mère)"]
[{"$f":"IF($H$6=1,U77,V77)","v":"Situation familiale actuelle des parents"},null,null,null,null,null,null,null,null,null,null,null,null,null,null,null,null,null,null,null,"Situation familiale actuelle des parents","Aktuelle familiäre Situation der Eltern"]
["Parents mariés ensemble (ou veuf/veuve)",null,null,null,null,null,null,{"$f":"VLOOKUP(A78,N78:O82,2,FALSE)","v":1},null,null,null,null,null,{"$f":"IF($H$6=1,Q79,R79)","v":"Parents mariés ensemble (ou veuf/veuve)"},1]
[null,null,null,null,null,null,null,null,null,null,null,null,null,{"$f":"IF($H$6=1,Q80,R80)","v":"Parents divorcés/séparés/jamais mariés ensemble et droit de garde à la mère (contribution d'entretien versée par le père)"},2,null,"Parents mariés ensemble (ou veuf/veuve)","Miteinander verheiratete Eltern (oder verwitwet)"]
[{"$f":"IF($H$6=1,U80,V80)","v":"Votre mère est-elle remariée ?"},null,"Non",null,null,null,null,{"$f":"VLOOKUP(C80,N23:O24,2,FALSE)","v":0},null,null,null,null,null,{"$f":"IF($H$6=1,Q81,R81)","v":"Parents divorcés/séparés/jamais mariés ensemble et droit de garde au père (contribution d'entretien versée par la mère)"},3,null,"Parents divorcés/séparés/jamais mariés ensemble et droit de garde à la mère (contribution d'entretien versée par le père)","Nicht miteinander verheiratete/getrennte/geschiedene Eltern mit Obhut bei der Mutter (Vater zahlt Unterhaltsbeitrag)",null,null,"Votre mère est-elle remariée ?","Ist Ihre Mutter wiederverheiratet ?"]
[{"$f":"IF($H$6=1,U81,V81)","v":"Votre père est-il remarié ?"},null,"Non",null,null,null,null,{"$f":"VLOOKUP(C81,N23:O24,2,FALSE)","v":0},null,null,null,null,null,{"$f":"IF($H$6=1,Q82,R82)","v":"Parents divorcés/séparés/jamais mariés ensemble et droit de garde partagée (pas de contribution d'entretien versée par les parents)"},4,null,"Parents divorcés/séparés/jamais mariés ensemble et droit de garde au père (contribution d'entretien versée par la mère)","Nicht miteinander verheiratete/getrennte/geschiedene Eltern mit Obhut beim Vater (Mutter zahlt Unterhaltsbeitrag)",null,null,"Votre père est-il remarié ?","Ist Ihr Vater wiederverheiratet ?"]
[null,null,null,null,null,null,null,null,null,null,null,null,null,{"$f":"IF($H$6=1,Q83,R83)","v":"2 parents décédés"},5,null,"Parents divorcés/séparés/jamais mariés ensemble et droit de garde partagée (pas de contribution d'entretien versée par les parents)","Nicht miteinander verheiratete/getrennte/geschiedene Eltern mit alternierender Obhut (Eltern zahlen keine Unterhaltsbeiträge)"]
[{"$f":"IF($H$6=1,U83,V83)","v":"Calcul revenu déterminant des parents"},null,null,null,null,null,null,null,null,null,null,null,null,null,null,null,"2 parents décédés","Beide Elternteile verstorben",null,null,"Calcul revenu déterminant des parents","Berechnung des massgebenden Einkommens der Eltern"]
[]
[{"$f":"IF($H$6=1,U85,V85)","v":"Les données fiscales sont à compléter sur la base de la taxation 2021 de vos parents."},null,null,null,null,null,null,null,null,null,null,null,null,null,null,null,null,null,null,null,{"$f":"\"Les données fiscales sont à compléter sur la base de la taxation \"&O11&\" de vos parents.\"","v":"Les données fiscales sont à compléter sur la base de la taxation 2021 de vos parents."},{"$f":" \"Bei den Steuerangaben benötigen Sie die Steuerveranlagung \"&O11&\" Ihrer Eltern.\"","v":"Bei den Steuerangaben benötigen Sie die Steuerveranlagung 2021 Ihrer Eltern."}]
[{"$f":"IF($H$6=1,U86,V86)","v":"Seules les colonnes dont l'entête n'est pas vide doivent être complétées !\nVous trouvez entre parenthèses la rubrique de la taxation (ex: 2400)\nDans le cas de perfectionnement en emploi, il n'est pas utile de saisir les données fiscales des parents."},null,null,null,null,null,null,null,null,null,null,null,null,null,null,null,null,null,null,null,"Seules les colonnes dont l'entête n'est pas vide doivent être complétées !\nVous trouvez entre parenthèses la rubrique de la taxation (ex: 2400)\nDans le cas de perfectionnement en emploi, il n'est pas utile de saisir les données fiscales des parents.","Es müssen nur die Spalten mit einer Überschrift ausgefüllt werden.\nDie entsprechende Rubrik finden Sie in der Klammer (z.B. 2400).\nFalls Sie eine berufsbegleitende Weiterbildung absolvieren, benötigen Sie die Steuerangaben Ihrer Eltern nicht."]
[null,null,null,null,null,null,null,null,null,null,null,null,null,null,null,null,null,null,null,null,"Rubrique","Rubrik"]
[{"$f":"IF($H$6=1,U88,V88)","v":"Description"},{"$f":"IF($H$6=1,U87,V87)","v":"Rubrique"},{"$f":"IF(OR(H14=4,H78=5),\"\",IF(H78=1,H88,IF(H78=2,H89,IF(H78=3,H90,H90))))","v":"Parents"},{"$f":"IF(OR(H14=4,H78=5),\"\",IF(H78=4,H89,\"\"))","v":""},null,null,null,{"$f":"IF($H$6=1,Q89,R89)","v":"Parents"},null,null,null,null,null,"Variable","Formules",null,null,null,null,null,"Description","Beschreibung"]
["Revenu net","(2400)",0,0,null,null,null,{"$f":"IF($H$6=1,Q90,R90)","v":"Mère"},null,null,null,null,null,"Bâtiment et biens-fonds privés (BP)","T2920+T2921+T2922+T2923",null,"Parents","Eltern",null,null,"Revenu net","Nettoeinkommen"]
["Revenus acquis à l'étranger","Hors taxation",0,0,null,null,null,{"$f":"IF($H$6=1,Q91,R91)","v":"Père"},null,null,null,null,null,"Bâtiment et biens-fonds  privés revalorisé (BPR)","si(BP>100'000 ; 100'000+(BP-100’000)*150% ; BP)",null,"Mère","Mutter",null,null,"Revenus acquis à l'étranger","erzieltes Einkommen im Ausland"]
["Fortune - Total des actifs","(3500)",0,0,null,null,null,null,null,null,null,null,null,"Fortune revalorisée brute (FRB)","T3500-BP+BPR",null,"Père","Vater",null,null,"Fortune - Total des actifs","Vermögne - Total Aktiven"]
["Fortune dans un autre canton","(4200)",0,0,null,null,null,null,null,null,null,null,null,"Fortune revalorisée nette (FRN)","FRB - T4000",null,null,null,null,null,"Fortune dans un autre canton","Vermögen in einem anderen Kanton"]
["Fortune à l'étranger","(4300)",0,0,null,null,null,null,null,null,null,null,null,"Revenu fortune (RF)","si(FRN>0; 5% * FRN; 0)",null,null,null,null,null,"Fortune à l'étranger","Vermögen im Ausland"]
["Bâtiment privés sur la commune de domicile","(2920)",0,0,null,null,null,null,null,null,null,null,null,null,null,null,null,null,null,null,"Bâtiment privés sur la commune de domicile","Private Gebäude in der Wohngemeinde"]
["Biens-fonds privés sur la commune de domicile","(2921)",0,0,null,null,null,null,null,null,null,null,null,"Pilier 3a calc (P3C)","T2210+T2220",null,null,null,null,null,"Biens-fonds privés sur la commune de domicile","Private Grundgüter in der Wohngemeinde"]
["Bâtiment privés sur d'autres communes","(2922)",0,0,null,null,null,null,null,null,null,null,null,"Pilier 3a admis (P3A)","SI(ET(T2210>0;T2220>0);Max légal*2;Max légal)",null,null,null,null,null,"Bâtiment privés sur d'autres communes","Private Gebäude ausserhalb der Wohngemeinde"]
["Biens-fonds privés sur d'autres communes","(2923)",0,0,null,null,null,null,null,null,null,null,null,"Pilier 3a (P3)","si(P3C>P3A;P3A;P3C)",null,null,null,null,null,"Biens-fonds privés sur d'autres communes","Private Grundgüter ausserhalb der Wohngemeinde"]
[null,"BP Total",{"$f":"C94+C95+C96+C97","v":0},{"$f":"D94+D95+D96+D97","v":0}]
[{"$f":"IF($H$6=1,U99,V99)","v":"Dette - Total des dettes et de la déduction forfaitaire"},"(4000)",0,0,null,null,null,null,null,null,null,null,null,"Revenu fortune immobilière (RFI)","T1110+T1120+T1130",null,null,null,null,null,"Dette - Total des dettes et de la déduction forfaitaire","Total Abzüge"]
[{"$f":"IF($H$6=1,U100,V100)","v":"Pillier 2b"},"(2100)",0,0,null,null,null,null,null,null,null,null,null,null,null,null,null,null,null,null,"Pillier 2b","Säule 2b"]
[{"$f":"IF($H$6=1,U101,V101)","v":"Pillier 3a  - Contribuable"},"(2210)",0,0,null,null,null,null,null,null,null,null,null,"Revenu fortune immobilière négatif (RFIN)","si(RFI<0;-RFI;0)",null,null,null,null,null,"Pillier 3a  - Contribuable","Säule 3a - Steuerpflichtiger"]
[{"$f":"IF($H$6=1,U102,V102)","v":"Pillier 3a  - Conjoint"},"(2220)",0,0,null,null,null,null,null,null,null,null,null,null,null,null,null,null,null,null,"Pillier 3a  - Conjoint","Säule 3a - Ehefrau"]
[null,"P3C Total",{"$f":"C101+C102","v":0},{"$f":"D101+D102","v":0},null,null,null,null,null,null,null,null,null,"Revenu + Fortune acquis à l'étranger","Ajustement manuel par l’utilisateur"]
[null,"P3A",{"$f":"IF(AND(C101>0,C102>0),2*H104,H104)","v":6883},{"$f":"IF(AND(D101>0,D102>0),2*H104,H104)","v":6883},null,null,null,6883]
[null,"P3",{"$f":"IF(C103>C104,C104,C103)","v":0},{"$f":"IF(D103>D104,D104,D103)","v":0},null,null,null,null,null,null,null,null,null,"Prestations en capital reçues (PCR)","T1010+T1020"]
[{"$f":"IF($H$6=1,U106,V106)","v":"Immeuble en Valais"},"(1110)",0,0,null,null,null,null,null,null,null,null,null,null,null,null,null,null,null,null,"Immeuble en Valais","Liegenschaften im Wallis"]
[{"$f":"IF($H$6=1,U107,V107)","v":"Immeuble sis dans un autre canton"},"(1120)",0,0,null,null,null,null,null,null,null,null,null,"Revenu déterminant (RD)","T2400+RF+P3+RFIN-T2531-PCR",null,null,null,null,null,"Immeuble sis dans un autre canton","Liegenschaften gelegen in einem anderen Schweizer Kanton"]
[{"$f":"IF($H$6=1,U108,V108)","v":"Immeuble sis à l'étranger"},"(1130)",0,0,null,null,null,null,null,null,null,null,null,null,null,null,null,null,null,null,"Immeuble sis à l'étranger","Liegenschaften gelegen im Ausland"]
[null,"RFI",{"$f":"C106+C107+C108","v":0},{"$f":"D106+D107+D108","v":0}]
[{"$f":"IF($H$6=1,U110,V110)","v":"Pensions alimentaires versées"},"(2531)",0,0,null,null,null,null,null,null,null,null,null,null,null,null,null,null,null,null,"Pensions alimentaires versées","Bezahlte Unterhaltsbeiträge"]
[{"$f":"IF($H$6=1,U111,V111)","v":"Prestations en capital - Contribuable"},"(1010)",0,0,null,null,null,null,null,null,null,null,null,null,null,null,null,null,null,null,"Prestations en capital - Contribuable","Kapitalleistungen bezogen - Steuerpflichtiger"]
[{"$f":"IF($H$6=1,U112,V112)","v":"Prestations en capital - Conjoint"},"(1020)",0,0,null,null,null,null,null,null,null,null,null,null,null,null,null,null,null,null,"Prestations en capital - Conjoint","Kapitalleistungen bezogen - Ehefrau"]
[null,"PCR",{"$f":"C111+C112","v":0},{"$f":"D111+D112","v":0}]
[]
["Bâtiment et biens-fonds privés revalorisé (BPR)",null,{"$f":"IF(C98>100000, 100000+(C98-100000)*150%, C98)","v":0},{"$f":"IF(D98>100000, 100000+(D98-100000)*150%, D98)","v":0}]
["Fortune revalorisée brute (FRB)",null,{"$f":"C91-C98+C115","v":0},{"$f":"D91-D98+D115","v":0}]
["Fortune revalorisée nette (FRN)",null,{"$f":"C116-C99","v":0},{"$f":"D116-D99","v":0},null,null,null,{"$f":"IF(OR(H14=2,H14=3),IF(OR(C117>1000000,D117>1000000),1,0),0)","v":0},"1=  formation tertiraire et FRN >1'000'000"]
[]
["Revenu fortune (RF)",null,{"$f":"IF(C117>0,5%*C117,0)","v":0},{"$f":"IF(D117>0,5%*D117,0)","v":0}]
["Revenu fortune immobilière négatif (RFIN)",null,{"$f":"IF(C109<0,-C109,0)","v":0},{"$f":"IF(D109<0,-D109,0)","v":0}]
[]
["Calcul du Revenu Déterminant"]
[null,"RN",{"$f":"C89","v":0},{"$f":"D89","v":0}]
[null,"+RAE",{"$f":"C90","v":0},{"$f":"D90","v":0}]
[null,"+RF",{"$f":"C119","v":0},{"$f":"D119","v":0}]
[null,"+P2",{"$f":"C100","v":0},{"$f":"D100","v":0}]
[null,"+P3",{"$f":"C105","v":0},{"$f":"D105","v":0}]
[null,"+RFIN",{"$f":"C120","v":0},{"$f":"D120","v":0}]
[null,"-PA",{"$f":"C110","v":0},{"$f":"D110","v":0}]
[null,"-PCR",{"$f":"C113","v":0},{"$f":"D113","v":0}]
[null,null,{"$f":"C123+C124+C125+C126+C127+C128-C129-C130","v":0},{"$f":"D123+D124+D125+D126+D127+D128-D129-D130","v":0}]
[]
[{"$f":"IF($H$6=1,U133,V133)","v":"Revenu déterminant"},null,{"$f":"IF(C88=\"\",0,ROUNDDOWN(C131,-2))","v":0},{"$f":"IF(D88=\"\",0,ROUNDDOWN(D131,-2))","v":0},null,null,null,{"$f":"IF(OR(C133>180000,D133>180000),1,0)","v":0},"0= < 180'000 | 1= >180'000",null,null,null,null,null,null,null,null,null,null,null,"Revenu déterminant","Massgebendes Einkommen der Eltern"]
[]
[]
[{"$f":"IF($H$6=1,U136,V136)","v":"Composition de la famille par ménage"},null,null,null,null,null,null,null,null,null,null,null,null,null,null,null,null,null,null,null,"Composition de la famille par ménage","Zusammensetzung der Familie nach Haushalt"]
[]
[{"$f":"IF($H$6=1,U138,V138)","v":"Nombre de personnes dans le ménage.\nLes personnes qui doivent être prise en compte sont les personnes vivant dans le ménage, à savoir :\n- Les parents (incl. les beaux-parents)\n- Les enfants mineurs\n- Les enfants majeurs en formation post-obligatoire\n\nVeuillez faire attention à ne pas oublier de :\n - vous mentionner dans le nombre d'enfants en formation\n - mentionner les enfants majeurs en formation ayant leur propre domicile légal dans la case correspondante\n - ne pas mentionner les enfants majeurs qui ne sont pas en formation\n\nLe nombre de personnes est à compléter uniquement dans les colonnes dont l'entête n'est pas vide.\n\na) Lorsque les parents sont mariés ensemble, une seule colonne doit être complétée.\n\nb) Lorsque les parents sont divorcés/séparés/jamais mariés ensemble, et qu'une contribution d'entretien est versée par l'un des parents à la personne en formation, seule la colonne du parent qui ne verse pas de contribution doit être complétée.\n\nc) ) Lorsque les parents sont divorcés/séparés/jamais mariés ensemble, et qu'aucune contribution d'entretien n'est versée, les colonnes des 2 parents doivent être complétées. Dans ce cas, les frères et sœurs (enfants en commun de vos parents, y compris vous) doivent être mentionnés chez le parent où ils vivent, dans une des catégories d'enfant. Lorsqu'ils sont en formation post-obligatoire, il faut en plus les mentionner dans la colonne de l’autre parent dans la catégorie « Nombre de frères et sœurs en formation post-obligatoire vivant chez l'autre parent (sans contribution d’entretien versée par ce parent)»."},{"$f":"IF($H$6=1,V138,W139)","v":"Anzahl im Haushalt lebende Personen\nEs müssen folgende Personen berücksichtigt werden:\n- Eltern (inkl. Schwiegereltern)\n- minderjährige Kinder\n- volljährige Kinder in post-obligatorischer Ausbildung\n\nBitte achten Sie darauf, folgendes nicht zu vergessen: \n - erwähnen Sie sich in der Anzahl Kinder in Ausbildung\n - erwähnen Sie in der entsprechenden Kolonne , volljährige Kinder in Ausbildung, welche einen eigenen Wohnsitz haben\n - erwähnen Sie keine volljährigen Kinder, welche nicht in Ausbildung sind\n\nDie Zahl der Personen muss nur in die Spalten mit einer Überschrift eingetragen werden.\n\na) Bei miteinander verheirateten Eltern muss nur eine Spalte ausgefüllt werden.\n\nb) Sind die Eltern getrennt/geschieden/nicht miteinander verheiratet und zahlt ein Elternteil Unterhaltsbeiträge für die Person in Ausbildung, muss nur die Spalte für jenen Elternteil ausgefüllt werden, der keinen Beitrag zahlt.\n\nc) Sind die Eltern getrennt/geschieden/nicht miteinander verheiratet ohne dass ein Unterhaltsbeitrag bezahlt wird, müssen die Kolonnen für beide Elternteile ausgefüllt werden. In diesem Fall müssen die Geschwister (gemeinsame Kinder Ihrer Eltern, Sie eingeschlossen) bei dem Elternteil, bei welchem Sie leben, in der Kategorie Kinder eingetragen werden. Für den Fall, dass sie in post-obligatorischer Ausbildung sind, müssen diese zusätzlich in der Kolonne des anderen Elternteils in die Kategorie «Anzahl beim anderen Elternteil lebende Geschwister in post-obligatorischer Ausbildung (keine Unterhaltszahlungen durch diesen Elternteil geleistet)»,  eingetragen werden. \n"},{"$f":"IF($H$6=1,W139,X139)","v":0},{"$f":"IF($H$6=1,X139,Y139)","v":0},{"$f":"IF($H$6=1,Y139,Z139)","v":0},{"$f":"IF($H$6=1,Z139,AA139)","v":0},null,null,null,null,null,null,null,null,null,null,null,null,null,null,"Nombre de personnes dans le ménage.\nLes personnes qui doivent être prise en compte sont les personnes vivant dans le ménage, à savoir :\n- Les parents (incl. les beaux-parents)\n- Les enfants mineurs\n- Les enfants majeurs en formation post-obligatoire\n\nVeuillez faire attention à ne pas oublier de :\n - vous mentionner dans le nombre d'enfants en formation\n - mentionner les enfants majeurs en formation ayant leur propre domicile légal dans la case correspondante\n - ne pas mentionner les enfants majeurs qui ne sont pas en formation\n\nLe nombre de personnes est à compléter uniquement dans les colonnes dont l'entête n'est pas vide.\n\na) Lorsque les parents sont mariés ensemble, une seule colonne doit être complétée.\n\nb) Lorsque les parents sont divorcés/séparés/jamais mariés ensemble, et qu'une contribution d'entretien est versée par l'un des parents à la personne en formation, seule la colonne du parent qui ne verse pas de contribution doit être complétée.\n\nc) ) Lorsque les parents sont divorcés/séparés/jamais mariés ensemble, et qu'aucune contribution d'entretien n'est versée, les colonnes des 2 parents doivent être complétées. Dans ce cas, les frères et sœurs (enfants en commun de vos parents, y compris vous) doivent être mentionnés chez le parent où ils vivent, dans une des catégories d'enfant. Lorsqu'ils sont en formation post-obligatoire, il faut en plus les mentionner dans la colonne de l’autre parent dans la catégorie « Nombre de frères et sœurs en formation post-obligatoire vivant chez l'autre parent (sans contribution d’entretien versée par ce parent)».","Anzahl im Haushalt lebende Personen\nEs müssen folgende Personen berücksichtigt werden:\n- Eltern (inkl. Schwiegereltern)\n- minderjährige Kinder\n- volljährige Kinder in post-obligatorischer Ausbildung\n\nBitte achten Sie darauf, folgendes nicht zu vergessen: \n - erwähnen Sie sich in der Anzahl Kinder in Ausbildung\n - erwähnen Sie in der entsprechenden Kolonne , volljährige Kinder in Ausbildung, welche einen eigenen Wohnsitz haben\n - erwähnen Sie keine volljährigen Kinder, welche nicht in Ausbildung sind\n\nDie Zahl der Personen muss nur in die Spalten mit einer Überschrift eingetragen werden.\n\na) Bei miteinander verheirateten Eltern muss nur eine Spalte ausgefüllt werden.\n\nb) Sind die Eltern getrennt/geschieden/nicht miteinander verheiratet und zahlt ein Elternteil Unterhaltsbeiträge für die Person in Ausbildung, muss nur die Spalte für jenen Elternteil ausgefüllt werden, der keinen Beitrag zahlt.\n\nc) Sind die Eltern getrennt/geschieden/nicht miteinander verheiratet ohne dass ein Unterhaltsbeitrag bezahlt wird, müssen die Kolonnen für beide Elternteile ausgefüllt werden. In diesem Fall müssen die Geschwister (gemeinsame Kinder Ihrer Eltern, Sie eingeschlossen) bei dem Elternteil, bei welchem Sie leben, in der Kategorie Kinder eingetragen werden. Für den Fall, dass sie in post-obligatorischer Ausbildung sind, müssen diese zusätzlich in der Kolonne des anderen Elternteils in die Kategorie «Anzahl beim anderen Elternteil lebende Geschwister in post-obligatorischer Ausbildung (keine Unterhaltszahlungen durch diesen Elternteil geleistet)»,  eingetragen werden. \n"]
[]
[]
[null,null,{"$f":"C88","v":"Parents"},{"$f":"D88","v":""},null,null,null,"Ass. Maladie","Frais divers"]
[{"$f":"IF($H$6=1,U142,V142)","v":"Nombre de parents "},null,0,0,null,null,null,5630,200,null,null,null,null,null,null,null,null,null,null,null,"Nombre de parents ","Anzahl Eltern",null,""]
["Nombre d'enfants en âge préscolaire ou en âge de scolarité obligatoire ",null,0,0,null,null,null,1310,200,null,null,null,null,null,null,"Famille","Etudiant",null,null,null,"Nombre d'enfants en âge préscolaire ou en âge de scolarité obligatoire ","Anzahl Kinder im Vorschulalter oder Schulpflichten Alter"]
["Nombre d'enfants en formation post obligatoire < 18 ans",null,0,0,null,null,null,1310,200,null,null,null,null,"Nbre personne","Entretien","Logement","Logement2",null,null,null,"Nombre d'enfants en formation post obligatoire < 18 ans","Anzahl Kinder in post-obligatorischer Ausbildung < 18 Jahren"]
["Nombre d'enfants en formation post obligatoire entre 18  et 25 ans",null,0,0,null,null,null,4280,200,null,null,null,null,1,12380,13890,8100,null,null,null,"Nombre d'enfants en formation post obligatoire entre 18  et 25 ans","Anzahl Kinder in post-obligatorischer Ausbildung zwischen 18 und 25 Jahren"]
["Nombre d'enfants en formation post obligatoire >= 25 ans",null,0,0,null,null,null,5630,200,null,null,null,null,2,18930,13890,11200,null,null,null,"Nombre d'enfants en formation post obligatoire >= 25 ans","Anzahl Kinder in post-obligatorischer Ausbildung >= 25 Jahren"]
["Nombre total de personne à prendre en compte dans le ménage",null,{"$f":"SUM(C142:C146)","v":0},{"$f":"SUM(D142:D146)","v":0},null,null,null,null,null,null,null,null,null,3,23020,16610,13890,null,null,null,"Nombre total de personne à prendre en compte dans le ménage","Anzahl der Personen im Haushalt"]
[null,null,null,null,null,null,null,null,null,null,null,null,null,4,26480,20030,16610]
[{"$f":"IF($H$6=1,U150,V150)","v":"Nombre total d'enfants en formation post-obligatoire"},null,{"$f":"SUM(C144:C146)","v":0},{"$f":"SUM(D144:D146)","v":0},null,null,null,null,null,null,null,null,null,5,29940,22800,20030]
[null,null,null,null,null,null,null,null,null,null,null,null,null,6,32450,24000,22800,null,null,null,"Nombre total d'enfants en formation post-obligatoire","Anzahl Kinder in post-obligatorischer Ausbildung"]
[{"$f":"IF($H$6=1,U151,V151)","v":"Nombre de frères et soeurs en formation post-obligatoire vivant chez l'autre parent (sans contribution d'entretien versée par ce parent) "},null,0,0,null,null,null,null,null,null,null,null,null,7,34960,25200,24000,null,null,null,"Nombre de frères et soeurs en formation post-obligatoire vivant chez l'autre parent (sans contribution d'entretien versée par ce parent) ","Anzahl beim anderen Elternteil lebende Geschwister in post-obligatorischer Ausbildung (keine Unterhaltszahlungen durch diesen Elternteil geleistet)"]
[{"$f":"IF($H$6=1,U152,V152)","v":"Nombre de frères et soeurs en formation post-obligatoire ayant leur propre domicile légal"},null,0,0,null,null,null,null,null,null,null,null,null,8,37470,26400,25200,null,null,null,"Nombre de frères et soeurs en formation post-obligatoire ayant leur propre domicile légal","Anzahl Geschwister in post-obligatorischer Ausbildung mit eigenem Wohnsitz"]
["Total des parts",null,{"$f":"C149+C151+C152","v":0},{"$f":"D149+D151+D152","v":0},null,null,null,null,null,null,null,null,null,9,39980,27600,26400,null,null,null,"Nombre de frères et soeurs vivant chez l'autre parent \n(sans contribution d'entretine versée par ce parent) ","Anzahl beim anderen Elternteil lebende Geschwister (keine Unterhaltszahlungen durch die Eltern) "]
[null,null,null,null,null,null,null,null,null,null,null,null,null,10,42480,28800,27600]
[null,null,null,null,null,null,null,null,null,null,null,null,null,11,44990,30000,28800]
[{"$f":"IF($H$6=1,U156,V156)","v":"Entretien de la famille"},null,{"$f":"VLOOKUP(C147,$N$144:$Q$161,2,FALSE)","v":0},{"$f":"IF(ISNA(VLOOKUP(D147,$N$144:$Q$161,2,FALSE)),0,VLOOKUP(D147,$N$144:$Q$161,2,FALSE))","v":0},null,null,null,null,null,null,null,null,null,12,47500,31200,30000,null,null,null,"Entretien de la famille","Lebensunterhaltskosten der Familie"]
["Logement de la famille",null,{"$f":"VLOOKUP(C147,$N$144:$Q$161,3,FALSE)","v":0},{"$f":"IF(ISNA(VLOOKUP(D147,$N$144:$Q$161,3,FALSE)),0,VLOOKUP(D147,$N$144:$Q$161,3,FALSE))","v":0},null,null,null,null,null,null,null,null,null,13,50010,32400,31200,null,null,null,"Logement de la famille","Unterkunft der Familie"]
["Frais Assurance maladie de la famille",null,{"$f":"C142*H142+C143*H143+C144*H144+C145*H145+C146*H146","v":0},{"$f":"D142*H142+D143*H143+D144*H144+D145*H145+D146*H146","v":0},null,null,null,null,null,null,null,null,null,14,52520,33600,32400,null,null,null,"Frais Assurance maladie de la famille","Krankenversicherungskosten der Familie"]
["Supplément d'intégration",null,{"$f":"C149*H159","v":0},{"$f":"D149*H159","v":0},null,null,null,1200,null,null,null,null,null,15,55030,34800,33600,null,null,null,"Supplément d'intégration","Integrationszulage"]
["Supplément de formation",null,{"$f":"C149*H160","v":0},{"$f":"D149*H160","v":0},null,null,null,1800,null,null,null,null,null,0,0,0,0,null,null,null,"Supplément de formation","Ausbildungszulage"]
["Supplément de frais divers",null,{"$f":"C142*I142+C143*I143+C144*I144+C145*I145+C146*I146","v":0},{"$f":"D142*I142+D143*I143+D144*I144+D145*I145+D146*I146","v":0},null,null,null,null,null,null,null,null,null,0,0,0,0,null,null,null,"Supplément de frais divers","Zulage sonstige Aufwendungen"]
["Besoins de la famille",null,{"$f":"SUM(C156:C161)","v":0},{"$f":"SUM(D156:D161)","v":0},null,null,null,null,null,null,null,null,null,null,null,null,null,null,null,null,"Besoins de la famille","Bedürfnisse der Familie"]
[]
[{"$f":"IF($H$6=1,U164,V164)","v":"Excédent de revenus (Revenu déterminant - Besoins de la famille > 0)"},null,{"$f":"IF(C133-C162 >0,C133-C162,0)","v":0},{"$f":"IF(D133-D162 >0,D133-D162,0)","v":0},null,null,null,null,null,null,null,null,null,null,null,null,null,null,null,null,"Excédent de revenus (Revenu déterminant - Besoins de la famille > 0)","Einkommensüberschuss (massgebendes Einkommen - Bedürfnisse der Familie > 0)"]
[]
[{"$f":"IF($H$6=1,U166,V166)","v":"Contribution déterminante des parents"},null,{"$f":"IF(H14=4,0,IF(C153=0,0,IF(C164/C153>0,C164/C153,0)))","v":0},{"$f":"IF(H14=4,0,IF(D153=0,0,IF(D164/D153>0,D164/D153,0)))","v":0},null,null,null,null,null,null,null,null,null,null,null,null,null,null,null,null,"Contribution déterminante des parents","Elternbeitrag"]
[]
[{"$f":"IF($H$6=1,U168,V168) & \" \" &O168","v":"Parent remarié :  Coefficient de 0.5"},null,{"$f":"IF(H6=1,G168,IF(G168=\"Oui\",\"Ja\",\"Nein\"))","v":"Non"},{"$f":"IF(H6=1,I168,IF(I168=\"Oui\",\"Ja\",\"Nein\"))","v":"Non"},null,null,{"$f":"IF(OR(C88=\"Mère\",C88=\"Mutter\"),IF(H80=1,\"Oui\",\"Non\"),IF(OR(C88=\"Père\",C88=\"Vater\"),IF(H81=1,\"Oui\",\"Non\"),\"Non\"))","v":"Non"},{"$f":"IF(G168=\"Non\",1,O168)","v":1},{"$f":"IF(OR(D88=\"Mère\",D88=\"Mutter\"),IF(H80=1,\"Oui\",\"Non\"),\"Non\")","v":"Non"},{"$f":"IF(I168=\"Non\",1,O168)","v":1},null,null,null,"Coefficient de réduction",0.5,null,null,null,null,null,"Parent remarié :  Coefficient de","Eltern wiederverheiratet : Koeffizient ="]
[{"$f":"IF($H$6=1,U169,V169)& \" \" &O169","v":"Indépendance partielle des parents : Coefficient de 0.1"},null,{"$f":"IF(H6=1,G169,IF(G169=\"Oui\",\"Ja\",\"Nein\"))","v":"Non"},{"$f":"IF(H6=1,I169,IF(I169=\"Oui\",\"Ja\",\"Nein\"))","v":"Non"},null,null,{"$f":"IF(H52=0,\"Non\",\"Oui\")","v":"Non"},{"$f":"IF(G169=\"Non\",1,O169)","v":1},{"$f":"IF(H52=0,\"Non\",\"Oui\")","v":"Non"},{"$f":"IF(I169=\"Non\",1,O169)","v":1},null,null,null,"Coefficient d'indépendance ",0.1,null,null,null,null,null,"Indépendance partielle des parents : Coefficient de","Partielle Unabhängigkeit von den Eltern : Koeffizient ="]
[{"$f":"IF($H$6=1,U170,V170)& \" \" &O170","v":"Coefficient Budgétaire : 1"},null,{"$f":"IF(H6=1,G170,IF(G170=\"Oui\",\"Ja\",\"Nein\"))","v":"Oui"},{"$f":"IF(H6=1,I170,IF(I170=\"Oui\",\"Ja\",\"Nein\"))","v":"Oui"},null,null,{"$f":"IF(O170>0,\"Oui\",\"Non\")","v":"Oui"},{"$f":"IF(G170=\"Non\",1,O170)","v":1},{"$f":"IF(O170>0,\"Oui\",\"Non\")","v":"Oui"},{"$f":"IF(I170=\"Non\",1,O170)","v":1},null,null,null,"Coefficient de comtribution des parent",1,null,null,null,null,null,"Coefficient Budgétaire :","Budget Koeffizient ="]
[{"$f":"IF($H$6=1,U171,V171)","v":"Part contributive des parents"},null,{"$f":"IF(C166>0,C166*H168*H169*H170,0)","v":0},{"$f":"IF(D166>0,D166*J168*J169*J170,0)","v":0},null,null,null,null,null,null,null,null,null,null,null,null,null,null,null,null,"Part contributive des parents","Elternbeitrag "]
[]
[{"$f":"IF($H$6=1,U173,V173)","v":"Découvert de la famille (Revenu déterminant - Besoins de la famille < 0)"},null,{"$f":"IF(C133-C162 <0,-(C133-C162),0)","v":0},{"$f":"IF(D133-D162 <0,-(D133-D162),0)","v":0},null,null,null,null,null,null,null,null,null,null,null,null,null,null,null,null,"Découvert de la famille (Revenu déterminant - Besoins de la famille < 0)","Negativsaldo des Familienbudgets (massgebliches Einkommen - Bedürfnisse der Familie < 0)"]
[]
[{"$f":"IF($H$6=1,U175,V175)","v":"Part de la personne en formation au découvert de la famille"},null,{"$f":"IF(H14=4,0,IF(C173=0,0,IF(B50=C141,C173/C147,0)))","v":0},{"$f":"IF(H14=4,0,IF(D173=0,0,IF(B50=D141,D173/D147,0)))","v":0},null,null,null,null,null,null,null,null,null,null,null,null,null,null,null,null,"Part de la personne en formation au découvert de la famille","Anteil der Person in Ausbildung am Negativsaldo des Familienbudget"]
[]
[]
[{"$f":"IF($H$6=1,U179,V179)","v":"Montant de l'aide financière"}]
[null,null,null,null,null,null,null,null,null,null,null,null,null,null,null,null,null,null,null,null,"Montant de l'aide financière","Betrag der finanziellen Hilfe"]
["Charges du reuérant",null,{"$f":"IF(C153>0,B37,0)","v":0}]
["Part de la personne en formation au découvert de la famille 1",null,{"$f":"IF(C175>=0,C175,0)","v":0}]
["Part de la personne en formation au découvert de la famille 2",null,{"$f":"IF(D175>=0,D175,0)","v":0}]
["Revenus personnels",null,{"$f":"IF(C69>=0,-C69,0)","v":0}]
["Revenu de la fortune",null,{"$f":"IF(C72>=0,-C72,0)","v":0}]
["Part contributive Parent 1",null,{"$f":"IF(C171>=0,-C171,0)","v":0}]
["Part contributive Parent 2",null,{"$f":"IF(D171>=0,-D171,0)","v":0}]
["Revenu maximum pour perfectionnement",null,{"$f":"IF(H14=4,IF(H46=2,60000+4000*C48,40000+4000*C48),0)","v":0}]
["Manque identifié",null,{"$f":"IF(H14<>4,SUM(C180:C186),IF(C187>=C183,C180,0))","v":0}]
[]
[{"$f":"IF($H$6=1,U190,V190)","v":"Montant maximum de frais annuels selon le type de formation"},null,{"$f":"IF(H14=1,I190,H190)","v":12000},null,null,null,null,16000,12000,null,null,null,null,null,null,null,null,null,null,null,"Montant maximum de frais annuels selon le type de formation"]
[{"$f":"IF($H$6=1,U191,V191)","v":"Majoration du maximum pour enfants à charge"},null,{"$f":"C48*4000","v":0},null,null,null,null,null,null,null,null,null,null,null,null,null,null,null,null,null,"Majoration du maximum pour enfants à charge"]
[{"$f":"IF($H$6=1,U192,V192)","v":"Montant annuel de frais admis"},null,{"$f":"IF(H14<>4,C190+C191,C190)","v":12000},null,null,null,null,null,null,null,null,null,null,null,null,null,null,null,null,null,"Montant annuel de frais admis"]
[null,null,null,null,null,null,null,null,null,null,null,null,null,null,null,null,null,null,null,null,null,null,null,"",""]
[{"$f":"IF($H$6=1,U194,V194)","v":"Allocation possible"},null,{"$f":"IF(C188>0,MROUND(MIN(C188,C192),10),0)","v":0},null,null,null,null,null,null,null,null,null,null,null,null,null,null,null,null,null,"Allocation possible"]
[]
["Nombre de semestre(s)",{"$f":"H33","v":2},null,null,null,null,null,{"$f":"IF(AND(D198>0,D199>0),3,IF(D198>0,1,IF(D199>0,2,4)))","v":4},null,{"$f":"D198/2","v":0},{"$f":"ROUNDDOWN(C198,-2)","v":0},{"$f":"IF(ROUND(C198/50,0)*50<500,0,ROUND(C198/50,0)*50)","v":0}]
["Allocation",{"$f":"IF(B196=1,\"(1 semestre\",\"\")","v":""},{"$f":"IF(B196=1,IF(C194>0,C194/2,0),IF(C194>0,C194,0))","v":0},"Montants accordés"]
["Bourse",{"$f":"IF(H117=0,IF(H14=4,0%,IF(H52=1,2/3,IF(H14=1,100%,80%))),IF(H52=1,2/3,1/3))","v":1},{"$f":"MROUND(C197*B198,10)","v":0},{"$f":"C198","v":0},"francs",null,null,{"$f":"IF(ROUND(C198/25,0)*25<500,0,ROUND(C198/25,0)*25)","v":0}]
["Prêt ",{"$f":"IF(H117=0,IF(H14=4,100%,IF(H52=1,1/3,IF(H14=1,0%,20%))),IF(H52=1,1/3,1/3))","v":0},{"$f":"MROUND(C197*B199,10)","v":0},{"$f":"C199","v":0},"francs",null,null,{"$f":"IF(ROUND(C199/25,0)*25<1000,0,ROUND(C199/25,0)*25)","v":0}]
["Prêt supplémentaire",null,{"$f":"IF(OR(C198>0,C199>0),IF(AND(H17=2,H14=2),IF(H19>=500,H19,0),0),0)","v":0},{"$f":"C200","v":0},"francs",null,null,{"$f":"IF(ROUND(C200/25,0)*25<1000,0,ROUND(C200/25,0)*25)","v":0},null,null,null,null,null,1,{"$f":"IF($H$6=1,Q200,R200)","v":"Sur la base des indications fournies, une allocation de formation sous forme de bourse pourrait vous être allouée :"},null,"Sur la base des indications fournies, une allocation de formation sous forme de bourse pourrait vous être allouée :","Gestützt auf die von Ihnen gemachten Angaben, kann Ihnen ein Ausbildungsbeitrag in Form eines Stipendiums gewährt werden:"]
[null,null,null,null,null,null,null,null,null,null,null,null,null,2,{"$f":"IF($H$6=1,Q201,R201)","v":"Sur la base des indications fournies, une allocation de formation sous forme de prêt pourrait vous être allouée :"},null,"Sur la base des indications fournies, une allocation de formation sous forme de prêt pourrait vous être allouée :","Gestützt auf die von Ihnen gemachten Angaben, kann Ihnen ein Ausbildungsbeitrag in Form eines Darlehens gewährt werden:"]
[null,null,null,null,null,null,null,null,null,null,null,null,null,3,{"$f":"IF($H$6=1,Q202,R202)","v":"Sur la base des indications fournies, une allocation de formation sous forme de bourse et de prêt pourrait vous être allouée :"},null,"Sur la base des indications fournies, une allocation de formation sous forme de bourse et de prêt pourrait vous être allouée :","Gestützt auf die von Ihnen gemachten Angaben, kann Ihnen ein Ausbildungsbeitrag in kombinierter Form eines Stipendiums und eines Darlehens gewährt werden:"]
[{"$f":"VLOOKUP(H196,N200:O203,2,FALSE)","v":"Sur la base des indications fournies, aucune aide ne pourrait vous être allouée."},null,null,null,null,null,null,null,null,null,null,null,null,4,{"$f":"IF($H$6=1,Q203,R203)","v":"Sur la base des indications fournies, aucune aide ne pourrait vous être allouée."},null,"Sur la base des indications fournies, aucune aide ne pourrait vous être allouée.","Gestützt auf die von Ihnen gemachten Angaben, kann Ihnen keine Ausbildungshilfe gewährt werden."]
[]
[null,null,{"$f":"IF(OR(H196=1,H196=3),H205,\"\")","v":""},{"$f":"IF(D198<>0,D198,\"\")","v":""},{"$f":"IF(D198<>0,\"CHF\",\"\")","v":""},null,null,{"$f":"IF($H$6=1,Q205,R205)","v":"Montant de la bourse :"},null,null,null,null,null,null,null,null,"Montant de la bourse :","Betrag des Stipendiums:",null,null,"Montant de la bourse :","Betrag des Stipendiums:"]
[null,null,{"$f":"IF(OR(H196=2,H196=3),H206,\"\")","v":""},{"$f":"IF(D199<>0,D199,\"\")","v":""},{"$f":"IF(D199<>0,\"CHF\",\"\")","v":""},null,null,{"$f":"IF($H$6=1,Q206,R206)","v":"Montant du prêt :"},null,null,null,null,null,null,null,null,"Montant du prêt :","Betrag des Darlehens:",null,null,"Montant du prêt :","Betrag des Darlehens:"]
[]
[{"$f":"IF(D200>0,O208,\"\")","v":""},null,null,null,null,null,null,null,null,null,null,null,null,null,{"$f":"IF($H$6=1,Q208,R208)","v":"Un prêt supplémentaire vous est accordé pour les frais d'écolage :"},null,"Un prêt supplémentaire vous est accordé pour les frais d'écolage :","Ein zusätzliches Darlehen für die Schulkosten wird gewährt :"]
[null,null,{"$f":"IF(D200>0,H209,\"\")","v":""},{"$f":"IF(D200<>0,D200,\"\")","v":""},{"$f":"IF(D200<>0,\"CHF\",\"\")","v":""},null,null,{"$f":"IF($H$6=1,Q209,R209)","v":"Montant du prêt :"},null,null,null,null,null,null,null,null,"Montant du prêt :","Betrag des Darlehens:"]
[]
[]
[{"$f":"IF($H$6=1,U212,V212)","v":"Ce calcul des bourses et/ou prêt s d’études vous est présenté à titre indicatif !\nIl n'engage en aucun cas l'Administration cantonale, car les bourses et prêts d’études sont calculés par l'autorité compétente sur la base des documents à fournir par le requérant, notamment la taxation définitive des parents, les gains du requérant, le nombre d’enfants à charge et en formation, etc..."},null,null,null,null,null,null,null,null,null,null,null,null,null,null,null,null,null,null,null,"Ce calcul des bourses et/ou prêt s d’études vous est présenté à titre indicatif !\nIl n'engage en aucun cas l'Administration cantonale, car les bourses et prêts d’études sont calculés par l'autorité compétente sur la base des documents à fournir par le requérant, notamment la taxation définitive des parents, les gains du requérant, le nombre d’enfants à charge et en formation, etc...","Bitte beachten Sie, dass das errechnete Ergebnis unverbindlich ist und lediglich als Anhaltspunkt dient.\nDa sich die zuständige Behörde bei der Berechnung der Stipendien und Ausbildungsdarlehen auf die vom Antragsteller eingereichten Dokumente (wie Steuerverfügung der Eltern, Einkommen des Antragstellers, Anzahl unterhaltsberechtigter oder sich in Ausbildung befindlicher Kinder) stützt, hat das Ergebnis des Online-Rechners für die Kantonsverwaltung keine Verpflichtung zur Folge.\n"]
[]
["Remarques : ",null,null,null,null,null,null,null,null,null,null,null,null,null,null,null,null,null,null,null,"Remarques : ","Bemerkungen: "]
[{"$f":"IF($H$6=1,U215,V215)","v":"a) Les bourses et les prêts d'études inférieurs à 500 francs ne sont pas alloués.\nb) Lorsque la fortune revalorisée nette est supérieure à 1'000'000 francs, l’aide pour une formation initiale du degré tertiaire est versée pour 2/3 sous forme de bourses et pour 1/3 sous forme de prêt d'études."},null,null,null,null,null,null,null,null,null,null,null,null,null,null,null,null,null,null,null,"a) Les bourses et les prêts d'études inférieurs à 500 francs ne sont pas alloués.\nb) Lorsque la fortune revalorisée nette est supérieure à 1'000'000 francs, l’aide pour une formation initiale du degré tertiaire est versée pour 2/3 sous forme de bourses et pour 1/3 sous forme de prêt d'études.","a) Stipendien und Darlehen unter 500 Frankenwerden nicht gewährt.\nb) Wenn das Nettovermögen 1'000’000 Franken übersteigt, wird die Hilfe für eine Grundausbildung auf tertiärer Stufe zu 2/3 in Form von Stipendien und zu 1/3 in Form eines Studiendarlehens ausbezahlt."]

{"sheet":"Détail des calculs - STD","index":1,"n_rows":129,"n_cols":8,"rows_kept":129,"cut":false,"hidden":true,"merged":[]}
[null,null,null,null,"Sion, le ",{"$f":"TODAY()","v":"2023-07-03"}]
["Détail des calculs"]
[]
["Année scolaire",null,{"$f":"Calcul!B6","v":"2023/2024"}]
[]
["N° Référence",null,{"$f":"Calcul!I42","v":0}]
["Nom - Prénom",null,{"$f":"CONCATENATE(Calcul!B42,\" \",Calcul!B44)","v":" "}]
["Etat civil",null,{"$f":"Calcul!B46","v":"Célibataire"}]
[]
[]
["Besoins de la famille ",null,null,null,{"$f":"IF(Calcul!H78=1,\"Parents\",IF(Calcul!H78=2,\"Mère\",IF(Calcul!H78=3,\"Père\",\"Père\")))","v":"Parents"},{"$f":"IF(Calcul!H78=4,\"Mère\",\"\")","v":""},null,"Ordonnance"]
["Nombre de parents",null,null,null,{"$f":"Calcul!C142","v":0},{"$f":"Calcul!D142","v":0}]
["Nombre d'enfants à charge",null,null,null,{"$f":"Calcul!#REF!","v":{"$error":"#REF!"}},{"$f":"Calcul!#REF!","v":{"$error":"#REF!"}}]
["Nombre de personnes dans le ménage",null,null,null,{"$f":"E12+E13","v":{"$error":"#REF!"}},{"$f":"F12+F13","v":{"$error":"#REF!"}}]
[]
["Nombre d'enfants en formation post-obligatoire",null,null,null,{"$f":"Calcul!C149","v":0},{"$f":"Calcul!D149","v":0}]
[]
["Besoins admis de la famille ",null,null,null,{"$f":"Calcul!C156","v":0},{"$f":"Calcul!D156","v":0},null,"Annexe II"]
["Supplément de formation (1'800.- / enfants en formation p.-o.)",null,null,null,{"$f":"Calcul!C160","v":0},{"$f":"Calcul!D160","v":0},null,"Art. 7.2"]
["Besoins de la famille",null,null,null,{"$f":"E18+E19","v":0},{"$f":"F18+F19","v":0}]
[]
[{"$f":"CONCATENATE(\"Revenu déterminant des parents   (Base : Taxation \", Calcul!O11, \")\")","v":"Revenu déterminant des parents   (Base : Taxation 2021)"}]
["Revenu net  (2400)",null,null,"+",{"$f":"Calcul!C89","v":0},{"$f":"Calcul!D89","v":0},null,"Art. 6.1"]
["Fortune brute  (3500)",null,null,null,{"$f":"Calcul!C91","v":0},{"$f":"Calcul!D91","v":0}]
["Bâtiment privés  (2920,2922)",null,null,null,{"$f":"Calcul!C98","v":0},{"$f":"Calcul!D98","v":0}]
["Fortune revalorisée brute",null,null,null,{"$f":"Calcul!C116","v":0},{"$f":"Calcul!D116","v":0}]
["Dette  (4000)",null,null,null,{"$f":"Calcul!C99","v":0},{"$f":"Calcul!D99","v":0}]
["Fortune revalorisée nette",null,null,null,{"$f":"Calcul!C117","v":0},{"$f":"Calcul!D117","v":0}]
["Revenu de la fortune (5 % fortune revalorisée nette)",null,null,"+",{"$f":"Calcul!C125","v":0},{"$f":"Calcul!D125","v":0}]
["Pilier 3a  (2210,2220)",null,null,"+",{"$f":"Calcul!C105","v":0},{"$f":"Calcul!D105","v":0}]
["Revenu négatif de la fortune immobilière  (1110,1120,1130)",null,null,"+",{"$f":"Calcul!C120","v":0},{"$f":"Calcul!D120","v":0}]
["Pensions alimentaires versées  (2531)",null,null,"-",{"$f":"Calcul!C110","v":0},{"$f":"Calcul!D110","v":0}]
["Prestations en capital reçues  (1010,1020)",null,null,"-",{"$f":"Calcul!C113","v":0},{"$f":"Calcul!D113","v":0}]
["Revenu déterminant calculé",null,null,null,{"$f":"E23+E29+E30+E31-E32-E33","v":0},{"$f":"F23+F29+F30+F31-F32-F33","v":0}]
[]
["Revenu déterminant",null,null,null,{"$f":"ROUNDDOWN(E34,-2)","v":0},{"$f":"ROUNDDOWN(F34,-2)","v":0}]
[]
["Contribution des parents"]
["Prise en compte des prestations parentales ",null,null,null,{"$f":"IF(E36<180000,IF(Calcul!H52=0,\"Oui\",\"Non\"),IF(Calcul!H52=1,\"Revenu >180'000\",\"Oui\"))","v":"Oui"},{"$f":"E39","v":"Oui"},null,{"$f":"IF(E39=\"Revenu >180'000\",\"Art. 12.3\",\"Art. 12\")","v":"Art. 12"}]
[]
["Solde disponible (Revenu déterminant - Besoins)",null,null,null,{"$f":"E36-E20","v":0},{"$f":"F36-F20","v":0},null,"Art. 7.1"]
["Réduction pour les familles recomposée (50%)",null,null,null,{"$f":"IF(Calcul!C168=1,\"Oui\",\"Non\")","v":"Non"},{"$f":"IF(Calcul!D168=1,\"Oui\",\"Non\")","v":"Non"},null,"Art. 7.4"]
["Revenu disponible des parents ",null,null,null,{"$f":"Calcul!#REF!","v":{"$error":"#REF!"}},{"$f":"Calcul!#REF!","v":{"$error":"#REF!"}}]
[]
["Nombre d'enfant à charge",null,null,null,{"$f":"E13","v":{"$error":"#REF!"}},{"$f":"F13","v":{"$error":"#REF!"}},null,"Art. 7.3"]
["Nombre d'enfants vivant avec l'autre parent à prendre en compte",null,null,null,{"$f":"Calcul!#REF!","v":{"$error":"#REF!"}},{"$f":"Calcul!#REF!","v":{"$error":"#REF!"}}]
["Total des enfants pris en compte",null,null,null,{"$f":"E45+E46","v":{"$error":"#REF!"}},{"$f":"F45+F46","v":{"$error":"#REF!"}}]
[]
["Nombre de personnes dans la famille",null,null,null,{"$f":"Calcul!C176","v":0},{"$f":"Calcul!D176","v":0}]
["Part de la personne en formation au découvert de la famille",null,null,null,{"$f":"Calcul!C175","v":0},{"$f":"Calcul!D175","v":0}]
[]
["Montant disponible par enfant",null,null,null,{"$f":"Calcul!C166","v":0},{"$f":"Calcul!D166","v":0}]
[]
[]
["Revenus personnels"]
["Revenus du requérant ",null,null,"+",{"$f":"Calcul!C59","v":0},null,null,"Art. 5"]
["Pensions alimentaires",null,null,"+",{"$f":"Calcul!C60","v":0}]
["Rentes du requérant",null,null,"+",{"$f":"Calcul!C61","v":0}]
["Revenus du conjoint",null,null,"+",{"$f":"Calcul!C62","v":0}]
["Revenus bruts",null,null,null,{"$f":"Calcul!C64","v":0}]
["Franchise",null,null,"-",{"$f":"IF(E60=0,0,Calcul!C66)","v":0}]
["Part de la personne en formation au découvert de la famille",null,null,"-",{"$f":"E50+F50","v":0}]
["Revenus calculés",null,null,null,{"$f":"IF(E60=0,0,Calcul!C68)","v":0}]
[]
["Revenus personnels",null,null,null,{"$f":"IF(E63<0,0,ROUNDDOWN(E63,-2))","v":0}]
[]
["Fortune personnelle"]
["Fortune nette ",null,null,null,{"$f":"Calcul!C71","v":0}]
["5% de la fortune nette",null,null,null,{"$f":"Calcul!C72","v":0}]
[]
[]
["Contribution des parents"]
["Montant disponible par enfant",null,null,null,{"$f":"E52","v":0},{"$f":"F52","v":0}]
["Coefficient de participation",null,null,null,0.8,{"$f":"E74","v":0.8}]
["Contribution des parents",null,null,null,{"$f":"E73*E74","v":0},{"$f":"F73*F74","v":0}]
[]
[]
["Calcul de l'allocation "]
[]
["Formation",null,{"$f":"VLOOKUP(C6,#REF!,10,FALSE)","v":{"$error":"#REF!"}}]
["Lieu de formation",null,{"$f":"VLOOKUP(C6,#REF!,12,FALSE)","v":{"$error":"#REF!"}}]
["Type de formation",null,{"$f":"Calcul!A14","v":"Formation secondaire du deuxième degré (Collège, ECCG, Ecoles profesionnelles à plein temps, …)"}]
["Catégorie de frais",null,{"$f":"Calcul!#REF!","v":{"$error":"#REF!"}}]
["Nombre de semestres",null,{"$f":"Calcul!B196","v":2}]
[]
["Montant maximum de frais annuels admis ",null,null,null,{"$f":"Calcul!B37","v":4700},null,null,"Annexe I"]
[]
["Nombre d'enfants à charge du(de la) requérant(e )",null,null,null,{"$f":"Calcul!C48","v":0},null,null,"Art.10"]
["Supplément pour enfants à charge (+4'000.- /enfant)",null,null,null,{"$f":"E88*4000","v":0}]
[]
["Montant de frais maximums admis ",null,null,null,{"$f":"Calcul!C180","v":0},null,null,"Art. 4"]
["Revenus personnels",null,null,"-",{"$f":"E65","v":0}]
["5% de la fortune nette",null,null,"-",{"$f":"IF(E69<0,0,ROUNDDOWN(E69,-2))","v":0}]
["Contribution des parents",null,null,"-",{"$f":"E52","v":0}]
[null,null,null,"-",{"$f":"F52","v":0}]
["Manque identifié",null,null,null,{"$f":"E91-E92-E93-E94-E95","v":0}]
[]
["Allocation possible",{"$f":"IF(E39=\"Revenu >180'000\",\"Revenu déterminant > 180'000\",IF(C84=1,\"(1 semestre)\",\"\"))","v":""},{"$f":"Calcul!C197","v":0},null,null,null,null,{"$f":"IF(E39=\"Revenu >180'000\",\"Art. 12.3\",\"\")","v":""}]
[null,null,null,null,"Montants alloués",null,null,{"$f":"IF(E39=\"Non\",\"Art. 12\",\"Art. 8\")","v":"Art. 8"}]
["Bourse",{"$f":"Calcul!B198","v":1},{"$f":"Calcul!C198","v":0},null,{"$f":"Calcul!D198","v":0},"francs"]
["Prêt ",{"$f":"Calcul!B199","v":0},{"$f":"Calcul!C199","v":0},null,{"$f":"Calcul!D199","v":0},"francs"]
[]
[]
[{"$f":"IF(H98=\"Art. 12.3\",\"Art. 12.3 : Lorsque le revenu déterminant des parents est > 180'000 francs, aucune aide n'est allouée !\",\"\")","v":""}]
["Les bourses inférieures à 500 francs et les prêts inférieurs à 1'000 francs ne sont pas alloués"]
[]
[]
[]
[]
[]
[]
[null,null,"Montant calculé",null,"Montant alloué"]
["Cas 1 : montant négatif "]
[null,null,"Montant < 0",null,0]
[]
["Cas 2 : Indépendance des prestations parentales "]
[null,"Bourse 1/3","xxxxx",null,"xxxxxx",null,null,"Art. 12"]
[null,"Prêt 2/3","xxxxx",null,"xxxxxx"]
[]
["Cas 3 : Montants forcés"]
[null,"Bourse","xxxxx",null,"xxxxxx"]
[null,"Prêt","xxxxx",null,"xxxxxx"]
[]
["Cas 3 : Formation Secondaire"]
[null,"Bourse 100%","xxxxx",null,"xxxxxx",null,null,"Art. 8"]
[]
["Cas 4 : Formation tertiaire"]
[null,"Bourse 80%","xxxxx",null,"xxxxxx",null,null,"Art. 8"]
[null,"Prêt 20%","xxxxx",null,"xxxxxx"]

{"sheet":"Détail des calculs - PERF","index":2,"n_rows":80,"n_cols":13,"rows_kept":80,"cut":false,"hidden":true,"merged":[[19,7,48,7],[52,0,55,7]]}
[null,null,null,null,"Sion, le ",{"$f":"TODAY()","v":"2023-07-03"}]
["Détail des calculs"]
[]
["Année scolaire",null,{"$f":"Calcul!B6","v":"2023/2024"},null,null,null,null,null,null,null,null,"Célibataire","Ledig"]
[null,null,null,null,null,null,null,null,null,null,null,"Marié(e) ","Verheiratet"]
["N° Référence",null,{"$f":"Calcul!I42","v":0},null,null,null,null,null,null,null,null,"Divorcé(e) ","Geschieden"]
["Nom - Prénom",null,{"$f":"CONCATENATE(Calcul!B42,\" \",Calcul!B44)","v":" "},null,null,null,null,null,null,null,null,"Séparé(e) ","Getrennt"]
["Etat civil",null,{"$f":"Calcul!B46","v":"Célibataire"},null,null,null,null,null,null,null,null,"Veuf(ve)","Witwer (Witwe)"]
[null,null,null,null,null,null,null,null,null,null,null,"Remarié(e) ","Wiederverheiratet"]
[null,null,null,null,null,null,null,null,null,null,null,"Partenariat enregistré","Eingetragene Partnerschaft"]
[]
["Calcul de l'allocation "]
[]
["Formation",null,{"$f":"VLOOKUP(C6,#REF!,10,FALSE)","v":{"$error":"#REF!"}},null,null,null,null,null,null,null,null,"Repas de midi à domicile","Mittagessen zuhause"]
["Lieu de formation",null,{"$f":"VLOOKUP(C6,#REF!,12,FALSE)","v":{"$error":"#REF!"}},null,null,null,null,null,null,null,null,"Repas de midi hors domicile","Mittagessen auswärts"]
["Type de formation",null,"Formation continue",null,null,null,null,null,null,null,null,"Pension et logement hors famille","Unterkunft und Verpflegung ausserhalb der Familie"]
["Catégorie de frais",null,{"$f":"Calcul!A14","v":"Formation secondaire du deuxième degré (Collège, ECCG, Ecoles profesionnelles à plein temps, …)"},null,null,null,null,null,null,null,null,"Pension et logement  hors canton","Unterkunft und Verpflegung ausserhalb des Kantons"]
["Nombre de semestres",null,{"$f":"Calcul!B196","v":2},null,null,null,null,null,null,null,null,"Formation à distance (tertiaire)","Fernstudium"]
[null,null,null,null,null,null,null,null,null,null,null,"Perfectionnement en emploi","Berufsbegleitende Weiterbildung"]
["Montant maximum de frais annuels admis ",null,null,null,{"$f":"Calcul!B37","v":4700},null,null,"Art. 14"]
[null,null,"Frais de repas",{"$f":"Calcul!B34","v":0}]
[null,null,"Frais de déplacement",{"$f":"Calcul!#REF!","v":{"$error":"#REF!"}}]
[null,null,"Frais de logement",{"$f":"Calcul!#REF!","v":{"$error":"#REF!"}}]
[null,null,"Inscription/Taxes/Ecolage",{"$f":"Calcul!#REF!","v":{"$error":"#REF!"}}]
[]
["Revenu brut maximum",null,null,null,{"$f":"IF(Calcul!H46=2,54000,36000)","v":36000}]
["Nombre d'enfants à charge du(de la) requérant(e )",null,null,{"$f":"Calcul!C48","v":0}]
["Supplément pour enfants à charge (+6'000.- /enfant)",null,null,null,{"$f":"D27*6000","v":0}]
["Revenu brut maximum admis",null,null,null,{"$f":"E26+E28","v":36000}]
[]
["Revenu brut annuel"]
["Revenu de la personne en formation",null,null,null,{"$f":"Calcul!C59","v":0}]
["Pensions alimentaires reçues",null,null,null,{"$f":"Calcul!C60","v":0}]
["Rentes de la personne en formation (AVS, AI,LPP, ...)",null,null,null,{"$f":"Calcul!C61","v":0}]
["Revenu Conjoint",null,null,null,{"$f":"Calcul!C62","v":0}]
["Revenu brut  annuel",null,null,null,{"$f":"SUM(E32:E35)","v":0}]
[]
[]
["Revenu brut maximum admis",null,null,null,{"$f":"E29","v":36000}]
["Revenus brut annuel",null,null,null,{"$f":"E36","v":0}]
["Manque identifié",null,null,null,{"$f":"E29-E40","v":36000}]
[]
[]
["Montant de frais maximums admis ",null,null,null,{"$f":"Calcul!B37","v":4700}]
["Allocation possible",null,null,null,{"$f":"IF(E41>0,E44,0)","v":4700}]
[]
[null,{"$f":"IF(C18=1,\"(1 Semester)\",\"\")","v":""}]
[null,null,null,null,"Montants alloués"]
["Prêt ",{"$f":"Calcul!B199","v":0},{"$f":"E45","v":4700},null,{"$f":"E45","v":4700},"francs"]
[]
[]
[]
["Aucune aide n'est accordée si le requérant dispose d'un revenu brut supérieur à 36'000 francs acquis pendant l'année pour laquelle il demande une aide. \nPour les personnes mariées, le revenu brut du couple ne doit pas dépasser 54'000 francs.\nCes deux limites sont augmentées de 6'000 francs par enfant à charge."]
[]
[]
[]
[]
[null,null,null," "]
[]
[]
[]
[]
[null,null,"Montant calculé",null,"Montant alloué"]
["Cas 1 : montant négatif "]
[null,null,"Montant < 0",null,0]
[]
["Cas 2 : Indépendance des prestations parentales "]
[null,"Bourse 1/3","xxxxx",null,"xxxxxx",null,null,"Art. 12"]
[null,"Prêt 2/3","xxxxx",null,"xxxxxx"]
[]
["Cas 3 : Montants forcés"]
[null,"Bourse","xxxxx",null,"xxxxxx"]
[null,"Prêt","xxxxx",null,"xxxxxx"]
[]
["Cas 3 : Formation Secondaire"]
[null,"Bourse 100%","xxxxx",null,"xxxxxx",null,null,"Art. 8"]
[]
["Cas 4 : Formation tertiaire"]
[null,"Bourse 80%","xxxxx",null,"xxxxxx",null,null,"Art. 8"]
[null,"Prêt 20%","xxxxx",null,"xxxxxx"]